bitfinex/quotes_ETHUSD_20250724
["timestamp","ask_amount","ask_price","bid_price","bid_amount"]
[1753398121795,2.69043199,3716.9,3716.6,0.1344]
[1753398121964,2.69055882,3716.7,3716.6,0.1344]
[1753398122149,4.348,3716.8,3716.4,0.1344]
[1753398122482,7.98040243,3716.8,3716.4,0.1344]
[1753398122682,2.69070361,3716.5,3716.2,0.1221]
[1753398122885,2.69084842,3716.3,3716.2,0.1221]
[1753398123058,2.69092083,3716.2,3716.1,0.04]
[1753398123258,4.346,3716.4,3716.1,0.04]
[1753398123456,4.347,3716.3,3716.1,0.04]
[1753398123654,4.347,3716.3,3716.1,0.1744]
[1753398127095,5.05077236,3716.3,3716.1,0.1744]
[1753398127396,3.17582083,3716.2,3716.1,0.04]
[1753398127815,0.1344,3716.3,3716.1,0.04]
[1753398128021,4.34,3716.2,3716.1,0.04]
[1753398128208,4.341,3716.2,3716.1,2.73099324]
[1753398128718,4.341,3716.2,3716.1,0.04]
[1753398128915,4.341,3716.2,3716.1,2.73099324]
[1753398129418,1.08178344,3716.6,3716.3,2.6907789]
[1753398129627,4.341,3716.5,3716.2,3.36299673]
[1753398129781,4.341,3716.5,3716.2,2.81300111]
[1753398129981,4.341,3716.5,3716.3,2.69084609]
[1753398130420,4.341,3716.5,3716.3,2.69078102]
[1753398130788,4.341,3716.5,3716.2,0.2565]
[1753398130998,4.341,3716.5,3716.3,2.69078644]
[1753398131202,4.341,3716.5,3716.2,0.1344]
[1753398131396,0.4849,3716.4,3716.2,0.1344]
[1753398131583,0.9419,3716.4,3716.2,0.1344]
[1753398131788,0.4849,3716.3,3716.1,0.04]
[1753398132126,4.341,3716.2,3716.1,0.04]
[1753398132826,8.32762837,3716.2,3716.1,0.04]
[1753398133009,8.91902837,3716.2,3716.1,0.04]
[1753398133321,6.22810754,3716.2,3716.1,0.04]
[1753398136720,9.71052837,3716.2,3716.1,0.04]
[1753398136887,6.88520754,3716.2,3715.3,0.001]
[1753398137092,2.69131242,3715.7,3715.3,0.001]
[1753398137307,2.6914278,3715.5,3715.3,0.001]
[1753398137504,7.03250024,3715.4,3715.3,0.001]
[1753398137706,7.97800024,3715.4,3715.3,0.001]
[1753398137920,5.2865,3715.4,3715.3,0.001]
[1753398138304,8.77579475,3715.4,3715.3,0.001]
[1753398138930,5.58569451,3715.4,3715.3,0.001]
[1753398139135,1.74329451,3715.4,3715.3,0.001]
[1753398139430,6.08429451,3715.4,3715.3,0.001]
[1753398139628,8.77579475,3715.4,3715.3,0.001]
[1753398139833,9.3502102,3715.4,3715.3,0.001]
[1753398140199,12.3502102,3715.4,3715.1,0.04]
[1753398140398,3.50244513,3715.2,3715.1,0.04]
[1753398140604,8.41886058,3715.2,3715.1,0.04]
[1753398140828,9.36436058,3715.2,3715.1,0.04]
[1753398141231,9.36436058,3715.2,3714.1,0.04]
[1753398141232,3.44476982,3714.2,3714.1,0.04]
[1753398141435,8.1312468,3714.2,3714.1,0.04]
[1753398141611,8.73226982,3714.2,3714.1,0.04]
[1753398141935,6.0399,3714.2,3714.1,0.04]
[1753398142302,8.73226982,3714.2,3714.1,0.04]
[1753398142504,9.30728124,3714.2,3714.1,0.04]
[1753398143236,16.30928124,3714.2,3714.1,0.04]
[1753398143440,18.98471155,3714.2,3714.1,0.04]
[1753398146307,4.343,3713.9,3713.8,4.01338136]
[1753398146733,4.4774,3713.9,3713.1,0.04]
[1753398146923,2.69276115,3713.7,3713.1,0.04]
[1753398147125,1.44341144,3714.3,3713.1,0.04]
[1753398147126,0.57509882,3713.6,3713.2,0.55]
[1753398147332,0.57509882,3714.4,3713.7,2.69272046]
[1753398147651,4.94709882,3714.3,3713.8,2.69262039]
[1753398147803,0.57509882,3714.2,3713.3,0.2684]
[1753398148004,0.57509882,3714.1,3713.4,2.69288998]
[1753398148207,3.68569302,3714.2,3713.1,0.2421]
[1753398148208,0.57509882,3714.0,3713.1,0.2421]
[1753398148446,4.37,3713.9,3713.4,2.69287919]
[1753398148647,4.37,3713.9,3713.4,2.69289511]
[1753398148832,4.37,3713.9,3713.2,0.8184]
[1753398149145,4.37,3713.9,3713.7,2.69272045]
[1753398149349,4.368,3713.8,3713.4,2.6929309]
[1753398149564,4.368,3713.8,3713.1,0.2421]
[1753398149565,6.17776862,3713.8,3713.1,0.04]
[1753398149722,1.07461777,3713.7,3713.1,0.04]
[1753398149931,2.6930311,3713.3,3713.1,0.04]
[1753398150126,4.368,3713.2,3713.1,0.04]
[1753398151917,4.368,3713.2,3713.1,2.73316743]
[1753398152118,2.69355711,3712.6,3712.1,0.04]
[1753398152354,7.05766339,3712.5,3712.1,0.04]
[1753398152558,4.364,3712.5,3712.1,0.04]
[1753398153459,4.364,3712.5,3712.3,0.001]
[1753398154014,3.19227525,3712.4,3712.3,0.001]
[1753398154179,3.63917525,3712.4,3712.3,0.001]
[1753398155154,0.9455,3712.4,3712.3,0.001]
[1753398156196,4.364,3712.5,3712.3,0.001]
[1753398158500,4.8626,3712.5,3712.3,0.001]
[1753398158802,4.364,3712.5,3712.3,0.001]
[1753398160514,3.19227525,3712.4,3712.3,0.001]
[1753398160801,4.67759582,3712.4,3712.3,0.001]
[1753398161429,1.98392057,3712.4,3712.3,0.001]
[1753398161719,4.67759582,3712.4,3712.3,0.001]
[1753398161864,5.46519582,3712.4,3712.3,0.001]
[1753398162300,6.04054509,3712.4,3712.3,0.001]
[1753398162595,5.88602057,3712.4,3712.3,0.001]
[1753398162770,4.8476,3712.4,3712.3,0.001]
[1753398162971,7.54127525,3712.4,3712.3,0.001]
[1753398163181,4.8476,3712.4,3712.3,0.001]
[1753398163393,7.54127525,3712.4,3712.3,0.001]
[1753398163893,4.8476,3712.4,3712.3,0.001]
[1753398164103,2.69328978,3713.0,3712.3,0.001]
[1753398164276,5.0581327,3712.9,3712.3,2.82914197]
[1753398164479,5.0581327,3712.9,3712.4,2.69364437]
[1753398164480,4.4824,3712.9,3712.4,2.69364437]
[1753398164677,5.5567327,3712.9,3712.4,2.69367525]
[1753398164996,4.981,3712.9,3712.3,2.82912535]
[1753398165295,2.69358024,3712.6,3712.3,0.001]
[1753398165593,2.69367525,3712.4,3712.3,0.001]
[1753398165986,0.9359,3712.4,3712.3,0.001]
[1753398166184,3.62957525,3712.4,3712.3,0.001]
[1753398166388,4.71062582,3712.4,3712.3,0.001]
[1753398166774,5.28765508,3712.4,3712.3,0.001]
[1753398169007,4.80755508,3712.4,3712.3,0.001]
[1753398169301,5.28765508,3712.4,3712.3,0.001]
[1753398174811,0.57702926,3712.4,3712.3,0.001]
[1753398175043,0.1344,3712.5,3712.3,2.6946911]
[1753398175189,4.347,3712.4,3712.3,2.6946911]
[1753398175575,4.347,3712.4,3712.3,0.001]
[1753398177882,4.347,3712.4,3712.3,2.69474781]
[1753398178413,4.347,3712.4,3712.3,2.82914781]
[1753398178709,0.1344,3712.8,3712.3,1.00715232]
[1753398178912,4.347,3712.7,3712.4,2.69366933]
[1753398180417,4.347,3712.7,3712.3,0.1354]
[1753398180586,3.62949847,3712.6,3712.3,0.001]
[1753398180919,2.69367525,3712.4,3712.3,0.001]
[1753398181316,5.15404443,3712.4,3712.3,0.001]
[1753398181491,2.46036918,3712.4,3712.3,0.001]
[1753398181691,5.15404443,3712.4,3712.3,0.001]
[1753398184037,6.80636918,3712.4,3712.3,0.001]
[1753398184419,9.50004443,3712.4,3712.3,0.001]
[1753398185112,10.82610402,3712.4,3712.3,0.001]
[1753398186249,11.07809178,3712.4,3712.3,0.001]
[1753398186420,10.82610402,3712.4,3712.3,0.001]
[1753398187252,11.07809375,3712.4,3712.3,0.001]
[1753398190061,5.31315891,3712.4,3712.3,0.001]
[1753398190227,4.4804,3712.4,3712.3,0.001]
[1753398190437,4.346,3712.4,3712.3,0.001]
[1753398190847,4.346,3712.6,3712.4,0.2021]
[1753398191056,0.1364,3713.1,3712.8,2.69331519]
[1753398191364,4.346,3713.0,3712.6,2.69351529]
[1753398191577,4.346,3713.0,3712.5,3.13879047]
[1753398191778,4.346,3713.0,3712.5,0.4028]
[1753398191922,4.346,3713.0,3712.7,0.1344]
[1753398192365,4.8018,3713.0,3712.7,0.1344]
[1753398192518,0.1344,3712.8,3712.3,0.001]
[1753398192721,2.82807525,3712.4,3712.3,0.001]
[1753398192946,7.17407525,3712.4,3712.3,0.001]
[1753398193261,8.10997525,3712.4,3712.3,0.001]
[1753398193475,9.19033153,3712.4,3712.3,0.001]
[1753398193692,8.73453153,3712.4,3712.3,0.001]
[1753398193969,9.19033153,3712.4,3712.3,0.001]
[1753398194843,9.96053153,3712.4,3712.3,0.001]
[1753398196076,0.9046,3712.4,3712.3,0.001]
[1753398196279,4.4794,3712.4,3712.3,0.001]
[1753398196442,0.58095525,3713.0,3712.3,2.69474781]
[1753398196772,0.002,3713.1,3712.3,2.69474781]
[1753398196773,4.345,3712.9,3712.8,2.69338504]
[1753398196960,4.345,3712.9,3712.8,2.96178504]
[1753398197162,0.002,3713.1,3713.0,2.69323996]
[1753398197336,4.347,3713.1,3713.0,2.69323996]
[1753398197541,0.002,3713.1,3713.0,2.82763996]
[1753398197735,0.002,3713.1,3713.0,0.1344]
[1753398197953,0.002,3713.1,3712.9,0.2021]
[1753398198699,0.002,3713.1,3713.0,2.69323996]
[1753398198881,0.002,3713.1,3712.9,2.8953956]
[1753398199406,0.002,3713.1,3713.0,2.69323996]
[1753398199967,0.002,3713.1,3712.9,2.8954055]
[1753398200166,0.002,3713.1,3713.0,2.69323996]
[1753398200688,0.002,3713.1,3713.0,2.82763996]
[1753398201588,0.002,3713.1,3713.0,3.69943107]
[1753398201904,0.002,3713.1,3713.0,3.76876346]
[1753398202100,0.002,3713.1,3713.0,3.97086346]
[1753398202299,0.002,3713.1,3713.0,4.52086346]
[1753398202469,1e-08,3713.1,3713.0,15.40709787]
[1753398202788,1e-08,3713.1,3713.0,15.38016548]
[1753398204631,0.04,3714.9,3714.8,2.69193496]
[1753398205217,0.5166,3714.9,3714.8,2.69193496]
[1753398206125,0.04,3714.9,3714.8,2.69193496]
[1753398207229,0.04,3714.9,3714.8,3.69828549]
[1753398207596,0.5166,3714.9,3714.8,2.69193496]
[1753398208019,0.04,3714.9,3714.8,2.69193496]
[1753398208897,0.04,3714.9,3714.6,0.1344]
[1753398209230,0.04,3714.9,3714.8,2.69193496]
[1753398210529,0.04,3714.9,3714.8,2.82633496]
[1753398214251,0.04,3714.9,3714.8,0.1344]
[1753398215105,0.04,3714.9,3714.8,2.82633496]
[1753398217056,0.04,3714.9,3714.8,0.1344]
[1753398217542,0.04,3714.9,3714.2,0.3108]
[1753398217543,1.7654,3714.9,3713.8,0.2021]
[1753398217731,2.82646343,3714.7,3714.1,0.1344]
[1753398218244,0.1344,3714.7,3714.1,3.1344]
[1753398218412,0.611,3714.7,3714.1,3.1344]
[1753398218813,0.611,3714.7,3714.3,2.69223525]
[1753398219027,0.1344,3714.7,3714.3,2.69223525]
[1753398219213,0.1344,3714.7,3714.4,2.69221812]
[1753398219436,0.4766,3714.6,3714.4,2.69221812]
[1753398219746,0.4766,3714.6,3714.1,5.82681966]
[1753398219747,0.4766,3714.6,3714.3,2.69227778]
[1753398220045,0.1344,3714.7,3714.1,3.1344]
[1753398220339,0.8499,3714.9,3714.8,2.69193496]
[1753398220340,0.04,3714.9,3714.8,2.69193496]
[1753398221141,0.04,3714.9,3714.8,2.82633496]
[1753398222546,0.04,3714.9,3714.8,7.16333496]
[1753398225819,0.04,3714.9,3714.8,2.82633496]
[1753398226020,0.04,3714.9,3714.8,7.16233496]
[1753398226219,0.5352,3714.9,3714.8,7.16233496]
[1753398227124,0.5352,3714.9,3714.8,0.1344]
[1753398227328,0.9956,3714.9,3714.8,0.1344]
[1753398227528,0.9956,3714.9,3713.8,3.24262832]
[1753398227529,0.8275,3714.8,3713.8,0.2021]
[1753398227716,0.1344,3714.7,3714.2,0.1344]
[1753398227923,0.9556,3714.6,3714.3,4.335]
[1753398228131,0.1344,3714.7,3714.3,4.335]
[1753398228351,0.9556,3714.5,3714.3,7.02728605]
[1753398228552,0.4604,3714.5,3714.3,7.02728605]
[1753398228758,0.4952,3714.4,3714.3,4.335]
[1753398229462,0.4952,3714.4,3714.3,7.02729733]
[1753398229666,0.6296,3714.7,3714.4,2.69222485]
[1753398229871,0.4952,3714.6,3714.4,2.69222485]
[1753398230072,0.4952,3714.5,3714.3,7.0272825]
[1753398230238,0.4952,3714.5,3714.4,4.335]
[1753398230442,0.4604,3714.6,3714.4,4.335]
[1753398231032,0.4952,3714.5,3714.4,4.335]
[1753398232340,0.9556,3714.5,3714.4,4.335]
[1753398233961,0.4952,3714.5,3714.4,4.335]
[1753398234445,0.9556,3714.5,3714.4,4.335]
[1753398236363,0.9556,3714.5,3714.3,2.69229578]
[1753398236566,0.4604,3714.5,3714.4,4.333]
[1753398237268,0.9556,3714.5,3714.4,4.333]
[1753398238969,0.4604,3714.5,3714.4,4.333]
[1753398239168,0.9556,3714.5,3714.4,4.333]
[1753398239463,0.1344,3714.7,3714.4,4.333]
[1753398239652,0.5004,3714.9,3714.5,2.69209267]
[1753398239653,0.04,3714.9,3714.5,2.69209267]
[1753398239851,0.04,3714.9,3714.6,4.332]
[1753398240057,0.9556,3714.8,3714.6,4.332]
[1753398240266,0.04,3714.9,3714.6,4.332]
[1753398240479,0.9556,3714.7,3714.6,4.332]
[1753398240684,0.04,3714.9,3714.6,4.332]
[1753398240685,0.04,3714.9,3714.6,7.02407015]
[1753398240903,0.9556,3714.8,3714.5,2.69213274]
[1753398241058,0.04,3714.9,3714.5,4.332]
[1753398241263,0.9556,3714.7,3714.5,7.02414603]
[1753398241457,0.9556,3714.6,3714.5,4.331]
[1753398242288,0.9556,3714.6,3714.5,7.02315237]
[1753398242686,0.4952,3714.6,3714.5,7.02315237]
[1753398243102,0.4952,3714.6,3714.5,4.331]
[1753398245208,0.9556,3714.6,3714.2,0.1344]
[1753398245362,1.09,3714.6,3714.3,4.33]
[1753398245562,0.1344,3714.6,3714.3,4.33]
[1753398245763,0.9556,3714.5,3714.3,4.33]
[1753398245996,2.82651277,3714.6,3714.3,4.33]
[1753398246291,0.9556,3714.4,3714.3,4.33]
[1753398247293,0.9556,3714.4,3714.1,0.1344]
[1753398247501,0.9556,3714.4,3714.3,4.33]
[1753398247858,0.1344,3714.6,3714.5,2.69215237]
[1753398248062,0.04,3714.9,3714.5,4.329]
[1753398248263,0.04,3714.9,3714.7,2.69193778]
[1753398248596,0.04,3714.9,3714.8,2.69193496]
[1753398248787,0.04,3714.9,3714.8,3.8220848]
[1753398248989,0.04,3714.9,3714.8,6.8220848]
[1753398249178,0.04,3714.9,3714.8,12.76881069]
[1753398249496,0.04,3714.9,3714.8,12.97091069]
[1753398252301,0.042,3714.9,3714.8,12.97091069]
[1753398252773,1e-08,3714.9,3714.8,12.97091069]
[1753398254091,1e-08,3714.9,3714.8,17.62348269]
[1753398254490,1e-08,3714.9,3714.8,12.97091069]
[1753398255204,1e-08,3714.9,3714.8,17.29791069]
[1753398255502,1e-08,3714.9,3714.8,12.97091069]
[1753398255712,1e-08,3714.9,3714.8,6.8897848]
[1753398255915,0.45660001,3714.9,3714.5,0.2021]
[1753398256080,0.9063,3714.8,3714.2,0.2021]
[1753398256284,0.9063,3714.7,3713.8,2.6926598]
[1753398256482,3.59839011,3714.6,3713.9,7.01757855]
[1753398256800,0.8201,3714.8,3713.9,7.01757855]
[1753398256801,0.9063,3714.5,3714.0,5.69249253]
[1753398256967,0.4566,3714.4,3714.2,3.0]
[1753398257168,0.4566,3714.4,3714.2,7.325]
[1753398257365,0.4566,3714.3,3714.2,7.325]
[1753398259242,0.4566,3714.3,3714.2,10.15176982]
[1753398259711,0.4566,3714.3,3714.2,7.4594]
[1753398262310,0.9063,3714.3,3714.2,7.4594]
[1753398263347,0.9063,3714.3,3714.2,4.324]
[1753398264342,0.4566,3714.3,3714.2,10.01636982]
[1753398264543,0.4566,3714.3,3714.2,7.324]
[1753398264720,0.9063,3714.3,3714.2,7.323]
[1753398266339,0.9063,3714.3,3714.2,7.322]
[1753398267341,0.9063,3714.3,3714.2,10.01436982]
[1753398267708,0.9063,3714.3,3714.2,7.323]
[1753398268154,0.9063,3714.3,3714.2,10.01536982]
[1753398268650,0.9063,3714.3,3714.2,7.323]
[1753398268942,0.4497,3714.3,3714.2,7.323]
[1753398269247,0.9063,3714.3,3714.2,7.323]
[1753398270113,0.9063,3714.3,3714.2,10.01536982]
[1753398270522,0.4566,3714.7,3714.3,2.69229284]
[1753398270728,0.4566,3714.7,3714.5,2.69209567]
[1753398270928,0.4497,3714.7,3714.6,7.0130799]
[1753398271125,1e-08,3714.9,3714.7,2.69200742]
[1753398271357,1e-08,3714.9,3714.7,2.69199005]
[1753398271662,0.44970001,3714.9,3714.8,4.321]
[1753398271858,1e-08,3714.9,3714.8,4.321]
[1753398272334,0.90630001,3714.9,3714.8,4.321]
[1753398276028,0.90630001,3714.9,3714.4,0.1344]
[1753398276369,0.9063,3714.8,3714.5,4.319]
[1753398276572,0.9063,3714.7,3714.2,3.0]
[1753398276749,1e-08,3714.9,3714.2,3.0]
[1753398276750,1.6659,3714.6,3714.3,7.1456877]
[1753398276950,0.7596,3714.6,3714.3,4.4534]
[1753398277244,0.9063,3714.5,3714.3,4.4524]
[1753398277558,0.9063,3714.4,3714.3,4.4524]
[1753398278547,0.9063,3714.4,3714.3,7.14469733]
[1753398278984,0.4497,3714.4,3714.3,7.14469733]
[1753398279193,0.4566,3714.4,3714.3,7.14469733]
[1753398279679,0.4566,3714.6,3714.3,7.14463762]
[1753398279855,1e-08,3714.9,3714.8,2.69193496]
[1753398280055,1e-08,3714.9,3714.8,12.78000455]
[1753398280255,1e-08,3714.9,3714.8,16.18280455]
[1753398280854,1e-08,3714.9,3714.8,15.91440455]
[1753398281060,1e-08,3714.9,3714.8,17.82633703]
[1753398282081,0.90630001,3714.9,3714.5,3.24215237]
[1753398282257,0.9063,3714.8,3714.7,0.1344]
[1753398283280,0.9063,3714.8,3714.7,4.316]
[1753398284748,0.9063,3714.8,3714.7,4.315]
[1753398286384,0.4566,3714.8,3714.7,4.315]
[1753398286585,0.4566,3714.8,3714.7,7.00700742]
[1753398286758,1e-08,3714.9,3714.8,2.69193496]
[1753398287078,0.4995,3714.8,3714.7,4.4494]
[1753398287979,0.4995,3714.8,3714.7,4.4484]
[1753398288184,0.9434,3714.8,3714.7,4.4484]
[1753398288497,0.9434,3714.8,3713.6,0.2021]
[1753398288498,1.7022,3714.8,3713.6,0.2021]
[1753398288653,2.69212869,3714.6,3713.7,4.313]
[1753398288964,3.6355554,3714.5,3713.8,3.0]
[1753398289164,0.9434,3714.4,3714.0,3.0]
[1753398289372,0.9434,3714.3,3714.1,4.313]
[1753398289588,0.4439,3714.3,3714.1,4.313]
[1753398289887,1.7022,3714.8,3714.1,5.01355911]
[1753398290062,1.7022,3714.8,3714.1,7.70598526]
[1753398290268,1.2583,3714.8,3714.3,3.24223547]
[1753398290462,0.4995,3714.7,3714.4,4.313]
[1753398290667,0.4995,3714.7,3714.4,7.00521161]
[1753398290869,1.2027,3714.8,3714.4,7.00521161]
[1753398291090,0.4995,3714.6,3714.5,2.69215237]
[1753398291403,1e-08,3714.9,3714.8,6.24193496]
[1753398291703,1e-08,3714.9,3714.8,10.75603496]
[1753398293267,1e-08,3714.9,3714.8,10.55393496]
[1753398293496,1e-08,3714.9,3714.8,10.55293496]
[1753398294804,0.94340001,3714.9,3714.8,4.311]
[1753398296816,0.94340001,3714.9,3714.8,4.31]
[1753398297364,0.94340001,3714.9,3714.7,2.69200552]
[1753398297561,1e-08,3714.9,3714.8,4.31]
[1753398297898,1e-08,3714.9,3714.7,2.69200552]
[1753398298084,1e-08,3714.9,3714.8,4.31]
[1753398298396,0.44390001,3714.9,3714.8,4.31]
[1753398298593,0.44390001,3714.9,3714.8,0.1344]
[1753398298793,0.49950001,3714.9,3714.8,4.309]
[1753398298995,0.94340001,3714.9,3714.8,4.309]
[1753398300194,0.94340001,3714.9,3714.8,7.00093496]
[1753398300365,0.94340001,3714.9,3714.8,4.309]
[1753398300785,0.94340001,3714.9,3714.6,0.1344]
[1753398300992,0.9434,3714.8,3714.5,3.0]
[1753398301300,1e-08,3714.9,3714.3,0.1354]
[1753398301301,2.69213744,3714.6,3714.3,0.1354]
[1753398301501,2.69222485,3714.4,3714.3,0.001]
[1753398302009,0.9434,3714.4,3714.3,0.001]
[1753398302875,3.63562485,3714.4,3714.3,0.001]
[1753398308338,0.4995,3714.4,3714.3,0.001]
[1753398308513,0.8239,3714.8,3714.4,2.69222485]
[1753398308715,1e-08,3714.9,3714.4,0.5519984]
[1753398309036,0.49950001,3714.9,3714.8,2.69193496]
[1753398309402,1e-08,3714.9,3714.8,2.69193496]
[1753398309847,1e-08,3714.9,3714.8,2.82633496]
[1753398310652,1.70370001,3714.9,3714.3,0.001]
[1753398310817,0.93067001,3714.9,3714.4,0.1344]
[1753398311148,0.1344,3714.6,3714.4,2.69222371]
[1753398311448,0.9434,3714.5,3714.3,5.69328276]
[1753398311742,0.4995,3714.4,3714.3,3.001]
[1753398311907,0.9434,3714.4,3714.3,3.001]
[1753398312108,0.9434,3714.4,3714.3,0.001]
[1753398312908,0.9434,3714.4,3714.3,2.69329733]
[1753398313229,0.1344,3714.6,3714.5,5.69215237]
[1753398313407,1e-08,3714.9,3714.8,6.24193496]
[1753398313803,1e-08,3714.9,3714.8,6.41873496]
[1753398314038,1e-08,3714.9,3714.8,6.37633496]
[1753398314244,1e-08,3714.9,3714.8,6.68713496]
[1753398314449,1e-08,3714.9,3714.8,16.47857077]
[1753398315345,1e-08,3714.9,3714.8,20.78157077]
[1753398318879,1e-08,3714.9,3714.8,20.78257077]
[1753398321162,1e-08,3714.9,3714.8,16.47957077]
[1753398321370,1e-08,3714.9,3714.8,12.53717598]
[1753398323253,1e-08,3714.9,3714.8,20.77957077]
[1753398323975,1e-08,3714.9,3714.8,20.77857077]
[1753398324655,0.002,3715.5,3715.4,3.44360024]
[1753398324862,0.002,3715.5,3715.4,11.51643394]
[1753398325072,0.002,3715.5,3715.4,11.28741894]
[1753398325438,0.4952,3715.5,3715.4,11.28741894]
[1753398326892,0.4952,3715.5,3715.4,11.28641894]
[1753398328957,0.002,3715.5,3715.4,11.28641894]
[1753398329289,0.4952,3715.5,3715.4,11.28641894]
[1753398329496,0.9398,3715.5,3715.4,3.1344]
[1753398329858,0.9398,3715.5,3715.4,4.296]
[1753398330060,0.9398,3715.5,3715.3,7.296]
[1753398330290,0.9378,3715.4,3715.3,9.98757268]
[1753398330496,0.002,3715.5,3715.4,2.69150024]
[1753398330658,0.002,3715.5,3715.4,4.81893362]
[1753398330983,0.002,3715.5,3715.4,4.79201862]
[1753398331288,0.002,3715.5,3715.4,15.75052841]
[1753398331592,0.002,3715.5,3715.4,15.99201341]
[1753398331889,0.002,3715.7,3715.4,15.99201341]
[1753398331890,0.002,3715.7,3715.6,3.44345536]
[1753398332192,0.04,3715.9,3715.8,6.4433105]
[1753398332393,0.04,3715.9,3715.8,10.7383105]
[1753398332687,0.04,3715.9,3715.8,11.1835105]
[1753398332893,1e-08,3715.9,3715.8,11.1835105]
[1753398333089,1e-08,3716.2,3716.1,6.44309324]
[1753398333301,1e-08,3716.2,3716.1,18.66968803]
[1753398333502,1e-08,3716.2,3716.1,19.11488803]
[1753398335089,1e-08,3716.4,3716.3,3.44294842]
[1753398335372,1e-08,3716.4,3716.3,12.75957528]
[1753398335587,1e-08,3716.4,3716.3,12.7326668]
[1753398336478,0.002,3717.0,3716.8,3.24048643]
[1753398336479,1e-08,3717.0,3716.8,3.24048643]
[1753398336687,0.002,3717.7,3716.9,15.80149893]
[1753398336884,0.002,3717.7,3717.2,3.37459692]
[1753398337082,0.002,3717.7,3717.2,10.69449888]
[1753398337294,0.002,3717.7,3717.2,6.37459692]
[1753398337501,0.002,3717.7,3717.2,10.66659692]
[1753398337801,0.002,3717.7,3717.2,10.97739692]
[1753398338102,0.002,3717.7,3717.2,12.1989373]
[1753398338323,1e-08,3717.3,3717.2,12.7118373]
[1753398338993,1e-08,3717.3,3717.2,12.4010373]
[1753398339192,1e-08,3717.3,3717.2,12.4000373]
[1753398339421,1e-08,3717.3,3717.2,12.7108373]
[1753398339635,0.002,3717.7,3717.6,6.23990746]
[1753398339842,0.002,3717.7,3717.6,11.7238979]
[1753398340004,1e-08,3717.7,3717.6,12.1943979]
[1753398340206,1e-08,3717.7,3717.6,20.30279269]
[1753398340434,1e-08,3717.7,3717.6,12.0593979]
[1753398340854,1e-08,3717.7,3717.6,12.3701979]
[1753398343727,1e-08,3717.7,3717.6,7.7693979]
[1753398344061,1e-08,3717.7,3717.6,12.0583979]
[1753398347161,0.002,3718.1,3718.0,3.23961807]
[1753398347326,0.002,3718.1,3718.0,19.04473698]
[1753398347327,1e-08,3718.1,3718.0,19.04473698]
[1753398347650,1e-08,3718.1,3718.0,19.1522408]
[1753398347952,1e-08,3718.1,3718.0,19.4206408]
[1753398348342,1e-08,3718.1,3718.0,19.4630408]
[1753398348670,1e-08,3718.1,3718.0,19.4620408]
[1753398349740,1e-08,3718.1,3718.0,15.1760408]
[1753398350039,1e-08,3718.1,3718.0,19.4610408]
[1753398351039,1e-08,3718.1,3718.0,19.4186408]
[1753398351240,1e-08,3718.1,3718.0,15.1336408]
[1753398351560,1e-08,3718.1,3718.0,19.4176408]
[1753398351863,1e-08,3718.1,3718.0,19.4600408]
[1753398352671,1e-08,3718.1,3718.0,19.1492408]
[1753398352879,0.002,3718.8,3718.7,6.44121178]
[1753398353188,0.002,3718.8,3718.7,12.16149244]
[1753398353419,0.002,3718.8,3718.7,12.29589244]
[1753398355738,0.002,3718.8,3718.7,12.09379244]
[1753398355924,0.002,3718.8,3718.7,7.81079244]
[1753398356214,0.8968,3718.8,3718.7,10.65551178]
[1753398357911,0.8968,3718.8,3718.7,10.65451178]
[1753398358094,0.002,3718.8,3718.7,10.65451178]
[1753398358300,0.002,3718.8,3718.7,6.37351178]
[1753398358517,0.002,3718.8,3718.7,10.65351178]
[1753398358815,0.002,3718.8,3718.7,12.00799278]
[1753398359674,0.4675,3718.8,3718.7,7.72799278]
[1753398359875,0.8968,3718.8,3718.7,10.65351178]
[1753398360576,0.8968,3718.8,3718.7,6.37351178]
[1753398360915,1.6753,3718.8,3718.7,10.65351178]
[1753398361415,1.6753,3718.8,3718.7,6.37351178]
[1753398361416,0.8968,3718.8,3718.7,6.37351178]
[1753398361578,0.8968,3718.8,3718.7,10.65251178]
[1753398364737,0.002,3718.8,3718.7,12.18878267]
[1753398364917,0.042,3718.9,3718.8,6.23903947]
[1753398364918,1e-08,3718.9,3718.8,6.23903947]
[1753398365097,1e-08,3718.9,3718.8,6.54983947]
[1753398365680,1e-08,3718.9,3718.8,6.44113947]
[1753398365914,1e-08,3718.9,3718.8,10.71813947]
[1753398366095,1e-08,3718.9,3718.8,5.68903947]
[1753398366096,0.89480001,3718.9,3718.8,5.68903947]
[1753398366302,0.89480001,3718.9,3718.8,9.96603947]
[1753398366500,0.89480001,3718.9,3718.8,10.51603947]
[1753398366729,1e-08,3718.9,3718.8,9.96603947]
[1753398366937,1e-08,3718.9,3718.8,11.77101431]
[1753398367137,1e-08,3718.9,3718.8,12.32101431]
[1753398367949,0.04,3719.9,3719.8,2.68831657]
[1753398368241,0.04,3719.9,3719.8,10.51431657]
[1753398368391,0.04,3719.9,3719.8,11.85479866]
[1753398368591,0.04,3719.9,3719.8,11.98919866]
[1753398370340,0.1344,3721.2,3719.8,11.98919866]
[1753398370341,1.257,3721.3,3720.8,6.23759406]
[1753398370684,1.257,3721.3,3720.8,10.51259406]
[1753398371189,0.5055,3720.9,3720.8,10.51259406]
[1753398371605,0.04,3720.9,3720.8,11.83262225]
[1753398372287,1e-08,3720.9,3720.8,11.83262225]
[1753398372987,0.4655,3721.8,3721.7,3.23694413]
[1753398373226,0.04,3721.9,3721.8,6.23687194]